[Event "NJSK 2023 Jeugd C"]
[Site "Almelo, Netherlands"]
[Date "2023.05.02"]
[Round "4.10"]
[White "Van Batenburg, Mees"]
[Black "Klein Tuente, Sam"]
[Result "1-0"]
[TimeControl "90min/40moves + 30min + 30sec/move"]
[WhiteElo "2054"]
[BlackElo "1478"]

1. e4 {[%clk 01:30:58]} {[%emt 00:00:02]} c5 {[%clk 01:30:56]} {[%emt
00:00:04]} 2. Nf3 {[%clk 01:31:24]} {[%emt 00:00:03]} Nc6 {[%clk 01:30:31]}
{[%emt 00:00:55]} 3. d4 {[%clk 01:31:48]} {[%emt 00:00:07]} cxd4 {[%clk
01:30:57]} {[%emt 00:00:03]} 4. Nxd4 {[%clk 01:32:16]} {[%emt 00:00:03]} Nf6
{[%clk 01:31:14]} {[%emt 00:00:13]} 5. Nc3 {[%clk 01:32:41]} {[%emt 00:00:05]}
e6 {[%clk 01:28:55]} {[%emt 00:02:49]} 6. Nxc6 {[%clk 01:32:57]} {[%emt
00:00:14]} bxc6 {[%clk 01:29:14]} {[%emt 00:00:11]} 7. e5 {[%clk 01:33:23]}
{[%emt 00:00:04]} Nd5 {[%clk 01:29:01]} {[%emt 00:00:42]} 8. Ne4 {[%clk
01:33:47]} {[%emt 00:00:06]} Qc7 {[%clk 01:25:11]} {[%emt 00:04:20]} 9. f4
{[%clk 01:34:09]} {[%emt 00:00:09]} Ba6 {[%clk 01:14:38]} {[%emt 00:11:03]} 10.
c4 {[%clk 01:32:16]} {[%emt 00:02:23]} Nb6 {[%emt 00:02:43]} 11. b3 {[%clk
01:20:47]} {[%emt 00:11:57]} Nc8 {[%clk 00:55:22]} {[%emt 00:17:34]} 12. c5
{[%clk 01:16:42]} {[%emt 00:04:35]} Bxf1 {[%clk 00:47:41]} {[%emt 00:08:10]} 13.
Kxf1 {[%clk 01:16:15]} {[%emt 00:00:57]} Qa5 {[%clk 00:47:32]} {[%emt
00:00:39]} 14. Be3 {[%clk 01:03:43]} {[%emt 00:13:02]} Qb4 {[%clk 00:42:36]}
{[%emt 00:05:27]} 15. Qd3 {[%clk 01:01:06]} {[%emt 00:03:07]} a5 {[%clk
00:38:00]} {[%emt 00:05:05]} 16. Kf2 {[%clk 00:42:04]} {[%emt 00:19:34]} Be7
{[%clk 00:35:03]} {[%emt 00:03:26]} 17. Kf3 {[%clk 00:39:54]} {[%emt 00:02:40]}
Na7 {[%clk 00:32:14]} {[%emt 00:03:19]} 18. a4 {[%clk 00:39:19]} {[%emt
00:01:06]} O-O {[%clk 00:31:28]} {[%emt 00:01:16]} 19. Qxd7 {[%clk 00:33:06]}
{[%emt 00:06:43]} Rfe8 {[%clk 00:30:45]} {[%emt 00:01:13]} 20. Rab1 {[%clk
00:31:13]} {[%emt 00:02:23]} Kf8 {[%clk 00:30:14]} {[%emt 00:01:01]} 21. Qd4
{[%clk 00:25:10]} {[%emt 00:06:34]} Qxd4 {[%clk 00:26:41]} {[%emt 00:04:03]} 22.
Bxd4 {[%clk 00:25:25]} {[%emt 00:00:15]} Red8 {[%clk 00:25:48]} {[%emt
00:01:23]} 23. Rhd1 {[%clk 00:23:44]} {[%emt 00:02:11]} Rd5 {[%clk 00:24:51]}
{[%emt 00:01:26]} 24. Nc3 {[%clk 00:20:55]} {[%emt 00:03:19]} Rb8 {[%emt
00:08:33]} 25. Nxd5 {[%clk 00:19:52]} {[%emt 00:00:40]} cxd5 {[%clk 00:18:03]}
{[%emt 00:00:08]} 26. Rdc1 {[%clk 00:17:51]} {[%emt 00:02:31]} Nc6 {[%clk
00:15:56]} {[%emt 00:02:38]} 27. Be3 {[%clk 00:18:03]} {[%emt 00:00:17]} Rb4
{[%clk 00:15:46]} {[%emt 00:00:40]} 28. Bd2 {[%clk 00:15:55]} {[%emt 00:02:38]}
Rb8 {[%clk 00:15:46]} {[%emt 00:00:30]} 29. Ke3 {[%clk 00:15:45]} {[%emt
00:00:39]} Ke8 {[%clk 00:15:35]} {[%emt 00:00:42]} 30. Rc2 {[%clk 00:10:53]}
{[%emt 00:05:23]} Kd7 {[%clk 00:15:41]} {[%emt 00:00:24]} 31. g4 {[%clk
00:10:12]} {[%emt 00:01:11]} h6 {[%clk 00:14:40]} {[%emt 00:01:31]} 32. h3
{[%clk 00:09:33]} {[%emt 00:01:09]} g6 {[%clk 00:14:17]} {[%emt 00:00:53]} 33.
Kf2 {[%clk 00:08:36]} {[%emt 00:01:27]} Bh4+ {[%clk 00:14:18]} {[%emt
00:00:29]} 34. Kg2 {[%clk 00:08:58]} {[%emt 00:00:09]} Be7 {[%clk 00:13:20]}
{[%emt 00:01:27]} 35. Rc3 {[%clk 00:08:01]} {[%emt 00:01:27]} Rb4 {[%clk
00:11:35]} {[%emt 00:02:16]} 36. Rd3 {[%clk 00:07:39]} {[%emt 00:00:52]} Rb8
{[%clk 00:11:47]} {[%emt 00:00:18]} 37. Rc1 {[%clk 00:07:51]} {[%emt 00:00:18]}
Bf8 {[%clk 00:11:37]} {[%emt 00:00:41]} 38. h4 {[%clk 00:07:43]} {[%emt
00:00:38]} Be7 {[%clk 00:11:49]} {[%emt 00:00:18]} 39. Kh3 {[%clk 00:07:30]}
{[%emt 00:00:43]} Rh8 {[%clk 00:09:33]} {[%emt 00:02:46]} 40. h5 {[%clk
00:05:03]} {[%emt 00:02:57]} Rf8 {[%clk 00:08:10]} {[%emt 00:01:52]} 41. Be1
{[%clk 00:04:17]} {[%emt 00:01:17]} g5 {[%clk 00:07:19]} {[%emt 00:01:20]} 42.
Bg3 {[%clk 00:04:09]} {[%emt 00:00:39]} Nb4 {[%clk 00:06:52]} {[%emt 00:00:57]}
43. Rdd1 {[%clk 00:03:58]} {[%emt 00:00:41]} gxf4 {[%clk 00:06:34]} {[%emt
00:00:48]} 44. Bxf4 {[%clk 00:04:23]} {[%emt 00:00:04]} Bg5 {[%clk 00:06:57]}
{[%emt 00:00:07]} 45. Bxg5 {[%clk 00:04:30]} {[%emt 00:00:23]} hxg5 {[%clk
00:07:22]} {[%emt 00:00:05]} 46. c6+ {[%clk 00:03:26]} {[%emt 00:01:34]} Nxc6
{[%clk 00:07:42]} {[%emt 00:00:09]} 47. Rc5 {[%clk 00:03:52]} {[%emt 00:00:04]}
Nxe5 {[%clk 00:06:41]} {[%emt 00:01:32]} 48. Rxa5 {[%clk 00:04:09]} {[%emt
00:00:13]} Rb8 {[%clk 00:06:59]} {[%emt 00:00:11]} 49. Rb5 {[%clk 00:03:50]}
{[%emt 00:00:49]} Rxb5 {[%clk 00:07:01]} {[%emt 00:00:28]} 50. axb5 {[%clk
00:04:18]} {[%emt 00:00:03]} Kc7 {[%clk 00:07:15]} {[%emt 00:00:16]} 51. Re1
{[%clk 00:03:27]} {[%emt 00:01:21]} Nd7 {[%clk 00:06:31]} {[%emt 00:01:13]} 52.
h6 {[%clk 00:03:19]} {[%emt 00:00:39]} Nf8 {[%clk 00:06:35]} {[%emt 00:00:26]}
53. Rf1 {[%clk 00:03:44]} {[%emt 00:00:04]} f5 {[%clk 00:06:50]} {[%emt
00:00:15]} 54. gxf5 {[%clk 00:04:11]} {[%emt 00:00:03]} e5 {[%clk 00:07:16]}
{[%emt 00:00:05]} 55. Kg4 {[%clk 00:04:18]} {[%emt 00:00:23]} Nh7 {[%clk
00:07:30]} {[%emt 00:00:16]} 56. f6 {[%clk 00:04:31]} {[%emt 00:00:17]} e4
{[%clk 00:05:34]} {[%emt 00:02:27]} 57. f7 {[%clk 00:04:37]} {[%emt 00:00:23]}
d4 {[%clk 00:05:39]} {[%emt 00:00:27]} 58. f8=Q {[%clk 00:03:59]} {[%emt
00:01:08]} Nxf8 {[%clk 00:06:06]} {[%emt 00:00:02]} 59. Rxf8 {[%clk 00:04:21]}
{[%emt 00:00:08]} e3 {[%clk 00:05:48]} {[%emt 00:00:48]} 60. Re8 {[%clk
00:04:40]} {[%emt 00:00:11]} Kd7 {[%clk 00:05:45]} {[%emt 00:00:34]} 61. h7
{[%clk 00:05:03]} {[%emt 00:00:07]} Kxe8 {[%clk 00:06:06]} {[%emt 00:00:09]} 62.
h8=Q+ {[%clk 00:05:26]} {[%emt 00:00:06]} Kf7 {[%clk 00:06:17]} {[%emt
00:00:19]} 63. Qxd4 {[%clk 00:05:51]} {[%emt 00:00:05]} Kg8 {[%clk 00:06:35]}
{[%emt 00:00:11]} 64. Qxe3 {[%clk 00:06:13]} {[%emt 00:00:08]} Kg7 {[%clk
00:06:44]} {[%emt 00:00:21]} 65. Kxg5 {[%clk 00:06:39]} {[%emt 00:00:05]} Kg8
{[%clk 00:06:51]} {[%emt 00:00:23]} 66. Qe7 {[%clk 00:06:55]} {[%emt 00:00:13]}
Kh8 {[%clk 00:07:14]} {[%emt 00:00:08]} 67. Kg6 {[%clk 00:07:23]} {[%emt
00:00:02]} Kg8 {[%clk 00:07:15]} {[%emt 00:00:28]} 68. Qe8# {[%clk 00:07:49]}
{[%emt 00:00:04]} 1-0

[Event "NJSK 2023 Jeugd C"]
[Site "Almelo, Netherlands"]
[Date "2023.05.02"]
[Round "4.11"]
[White "Etienne, Ghilon"]
[Black "Zhu, Chenwu"]
[Result "0-1"]
[TimeControl "90min/40moves + 30min + 30sec/move"]
[WhiteElo "1673"]
[BlackElo "2052"]

1. e4 {[%clk 01:30:56]} {[%emt 00:00:03]} c5 {[%clk 01:30:52]} {[%emt
00:00:09]} 2. Nf3 {[%clk 01:31:20]} {[%emt 00:00:06]} d6 {[%clk 01:31:15]}
{[%emt 00:00:07]} 3. d4 {[%clk 01:31:45]} {[%emt 00:00:05]} cxd4 {[%clk
01:31:36]} {[%emt 00:00:09]} 4. Nxd4 {[%clk 01:32:11]} {[%emt 00:00:04]} Nf6
{[%clk 01:32:01]} {[%emt 00:00:05]} 5. Nc3 {[%clk 01:32:34]} {[%emt 00:00:08]}
g6 {[%clk 01:32:27]} {[%emt 00:00:03]} 6. Be3 {[%clk 01:32:58]} {[%emt
00:00:06]} Bg7 {[%clk 01:32:53]} {[%emt 00:00:04]} 7. Bc4 {[%clk 01:32:59]}
{[%emt 00:00:29]} Ng4 {[%clk 01:31:40]} {[%emt 00:01:43]} 8. Qd2 {[%clk
01:31:01]} {[%emt 00:02:29]} Nxe3 {[%clk 01:30:49]} {[%emt 00:01:20]} 9. fxe3
{[%clk 01:31:24]} {[%emt 00:00:06]} Nc6 {[%clk 01:29:26]} {[%emt 00:01:53]} 10.
O-O-O {[%clk 01:31:06]} {[%emt 00:00:48]} Ne5 {[%clk 01:27:20]} {[%emt
00:02:35]} 11. Bb3 {[%clk 01:29:59]} {[%emt 00:01:38]} Bd7 {[%clk 01:26:50]}
{[%emt 00:01:00]} 12. Rdf1 {[%clk 01:28:33]} {[%emt 00:01:56]} Rb8 {[%clk
01:25:59]} {[%emt 00:01:22]} 13. h4 {[%clk 01:26:47]} {[%emt 00:02:15]} h5
{[%clk 01:26:19]} {[%emt 00:00:10]} 14. Nf3 {[%clk 01:26:48]} {[%emt 00:00:30]}
O-O {[%clk 01:25:08]} {[%emt 00:01:40]} 15. Rhg1 {[%clk 01:23:57]} {[%emt
00:03:20]} b5 {[%clk 01:24:51]} {[%emt 00:00:48]} 16. Nd5 {[%clk 01:09:02]}
{[%emt 00:15:26]} a5 {[%clk 01:23:51]} {[%emt 00:01:30]} 17. a3 {[%clk
01:08:13]} {[%emt 00:01:18]} Nc4 {[%clk 01:18:08]} {[%emt 00:06:13]} 18. Bxc4
{[%clk 01:08:26]} {[%emt 00:00:18]} bxc4 {[%clk 01:18:33]} {[%emt 00:00:04]} 19.
Nd4 {[%clk 01:08:46]} {[%emt 00:00:10]} e6 {[%clk 01:18:21]} {[%emt 00:00:42]}
20. Nc3 {[%clk 01:08:43]} {[%emt 00:00:33]} Qb6 {[%clk 01:17:44]} {[%emt
00:01:07]} 21. Nd1 {[%clk 01:07:27]} {[%emt 00:01:46]} Rfc8 {[%clk 01:17:06]}
{[%emt 00:01:08]} 22. c3 {[%clk 01:07:32]} {[%emt 00:00:26]} e5 {[%clk
01:16:26]} {[%emt 00:01:10]} 23. Nf3 {[%clk 01:03:32]} {[%emt 00:04:29]} Qb3
{[%clk 01:15:17]} {[%emt 00:01:37]} 24. Qc2 {[%clk 00:59:51]} {[%emt 00:04:13]}
Qb6 {[%clk 01:08:41]} {[%emt 00:07:05]} 25. Rf2 {[%clk 00:53:43]} {[%emt
00:06:39]} Rc7 {[%clk 01:05:36]} {[%emt 00:03:36]} 26. Rd2 {[%clk 00:52:02]}
{[%emt 00:02:11]} Rcb7 {[%clk 01:02:58]} {[%emt 00:03:07]} 27. Re1 {[%clk
00:49:53]} {[%emt 00:02:39]} Bb5 {[%clk 00:59:32]} {[%emt 00:03:55]} 28. Ree2
{[%clk 00:47:22]} {[%emt 00:03:02]} Qc6 {[%clk 00:59:07]} {[%emt 00:00:55]} 29.
Qb1 {[%clk 00:47:01]} {[%emt 00:00:50]} Ba4 {[%clk 00:58:55]} {[%emt 00:00:43]}
30. Nh2 {[%clk 00:45:58]} {[%emt 00:01:30]} Qd7 {[%clk 00:54:09]} {[%emt
00:05:19]} 31. Nf2 {[%clk 00:45:04]} {[%emt 00:01:25]} f5 {[%clk 00:51:31]}
{[%emt 00:03:07]} 32. exf5 {[%clk 00:43:12]} {[%emt 00:02:22]} gxf5 {[%clk
00:51:12]} {[%emt 00:00:48]} 33. Nf3 {[%clk 00:39:03]} {[%emt 00:04:40]} d5
{[%clk 00:49:41]} {[%emt 00:02:01]} 34. Nh3 {[%clk 00:37:19]} {[%emt 00:02:14]}
Rb3 {[%clk 00:45:07]} {[%emt 00:05:04]} 35. Qa2 {[%clk 00:36:21]} {[%emt
00:01:25]} Qb7 {[%clk 00:40:32]} {[%emt 00:05:07]} 36. Nhg5 {[%clk 00:32:48]}
{[%emt 00:04:03]} Qd7 {[%clk 00:35:10]} {[%emt 00:05:51]} 37. Nh3 {[%clk
00:31:02]} {[%emt 00:02:18]} Qb5 {[%emt 00:02:09]} 38. Nhg5 {[%clk 00:30:55]}
{[%emt 00:00:31]} Bf8 {[%clk 00:33:15]} {[%emt 00:00:50]} 39. Ne6 {[%clk
00:23:20]} {[%emt 00:08:07]} Bd6 {[%clk 00:28:55]} {[%emt 00:04:48]} 40. Ned4
{[%clk 00:14:23]} {[%emt 00:09:28]} exd4 {[%clk 00:27:32]} {[%emt 00:01:53]} 41.
Nxd4 {[%clk 00:14:48]} {[%emt 00:00:06]} Qd7 {[%clk 00:21:48]} {[%emt
00:06:14]} 42. Nxb3 {[%clk 00:15:09]} {[%emt 00:00:09]} cxb3 {[%clk 00:20:53]}
{[%emt 00:01:24]} 43. Qb1 {[%clk 00:15:29]} {[%emt 00:00:10]} Bb5 {[%clk
00:18:11]} {[%emt 00:03:12]} 44. Rf2 {[%clk 00:13:05]} {[%emt 00:02:53]} Bc5
{[%clk 00:17:33]} {[%emt 00:01:07]} 45. Rf3 {[%clk 00:13:27]} {[%emt 00:00:09]}
Re8 {[%clk 00:16:34]} {[%emt 00:01:30]} 46. Rxf5 {[%clk 00:01:54]} {[%emt
00:12:03]} Bxe3 {[%clk 00:16:21]} {[%emt 00:00:42]} 47. Rg5+ {[%clk 00:01:59]}
{[%emt 00:00:24]} Bxg5 {[%clk 00:16:43]} {[%emt 00:00:08]} 48. Qg6+ {[%clk
00:02:24]} {[%emt 00:00:05]} Qg7 {[%clk 00:16:45]} {[%emt 00:00:28]} 49. Qxg5
{[%clk 00:02:35]} {[%emt 00:00:19]} Qxg5 {[%clk 00:16:58]} {[%emt 00:00:16]} 50.
hxg5 {[%clk 00:03:00]} {[%emt 00:00:05]} Re1+ {[%clk 00:17:12]} {[%emt
00:00:16]} 51. Rd1 {[%clk 00:03:27]} {[%emt 00:00:04]} Rxd1+ {[%clk 00:17:24]}
{[%emt 00:00:18]} 52. Kxd1 {[%clk 00:03:52]} {[%emt 00:00:04]} Kg7 {[%clk
00:17:44]} {[%emt 00:00:10]} 53. Kd2 {[%clk 00:04:11]} {[%emt 00:00:11]} Kg6
{[%clk 00:17:47]} {[%emt 00:00:27]} 54. Ke3 {[%clk 00:04:30]} {[%emt 00:00:10]}
Kxg5 {[%clk 00:18:12]} {[%emt 00:00:06]} 55. Kf3 {[%clk 00:04:32]} {[%emt
00:00:28]} h4 {[%clk 00:18:02]} {[%emt 00:00:40]} 56. g4 {[%clk 00:04:19]}
{[%emt 00:00:43]} Ba6 {[%clk 00:18:00]} {[%emt 00:00:32]} 57. a4 {[%clk
00:04:29]} {[%emt 00:00:19]} Bc4 {[%clk 00:18:26]} {[%emt 00:00:04]} 58. Kg2
{[%clk 00:04:51]} {[%emt 00:00:08]} Kxg4 {[%clk 00:18:46]} {[%emt 00:00:10]} 59.
Kh2 {[%clk 00:05:16]} {[%emt 00:00:05]} h3 {[%clk 00:19:03]} {[%emt 00:00:13]}
60. Kg1 {[%clk 00:04:58]} {[%emt 00:00:47]} Kg3 {[%clk 00:19:26]} {[%emt
00:00:08]} 61. Kh1 {[%clk 00:05:18]} {[%emt 00:00:10]} Bd3 {[%clk 00:19:50]}
{[%emt 00:00:06]} 62. c4 {[%clk 00:05:39]} {[%emt 00:00:09]} dxc4 {[%clk
00:20:13]} {[%emt 00:00:07]} 63. Kg1 {[%clk 00:05:58]} {[%emt 00:00:11]} h2+
{[%clk 00:20:38]} {[%emt 00:00:05]} 64. Kh1 {[%clk 00:06:21]} {[%emt 00:00:07]}
Be4# {[%clk 00:21:03]} {[%emt 00:00:05]} 0-1

[Event "NJSK 2023 Jeugd C"]
[Site "Almelo, Netherlands"]
[Date "2023.05.02"]
[Round "4.12"]
[White "Frederiks, Jesse"]
[Black "Vijver, Jonathan"]
[Result "0-1"]
[TimeControl "90min/40moves + 30min + 30sec/move"]
[WhiteElo "1510"]
[BlackElo "1781"]

1. d4 {[%clk 01:30:58]} {[%emt 00:00:01]} Nf6 {[%clk 01:30:40]} {[%emt
00:00:20]} 2. c4 {[%clk 01:31:23]} {[%emt 00:00:05]} c5 {[%clk 01:30:59]}
{[%emt 00:00:10]} 3. d5 {[%clk 01:31:38]} {[%emt 00:00:16]} e6 {[%clk
01:31:24]} {[%emt 00:00:06]} 4. Nc3 {[%clk 01:31:28]} {[%emt 00:00:39]} exd5
{[%clk 01:31:48]} {[%emt 00:00:07]} 5. Nxd5 {[%clk 01:31:42]} {[%emt 00:00:15]}
Nxd5 {[%clk 01:32:11]} {[%emt 00:00:06]} 6. cxd5 {[%clk 01:31:58]} {[%emt
00:00:14]} d6 {[%clk 01:32:35]} {[%emt 00:00:06]} 7. e3 {[%clk 01:30:19]}
{[%emt 00:02:09]} g6 {[%clk 01:32:01]} {[%emt 00:01:03]} 8. Bd2 {[%clk
01:29:47]} {[%emt 00:01:02]} Bg7 {[%clk 01:32:12]} {[%emt 00:00:20]} 9. Bc3
{[%clk 01:29:24]} {[%emt 00:00:53]} f6 {[%clk 01:31:43]} {[%emt 00:00:58]} 10.
Bb5+ {[%clk 01:29:07]} {[%emt 00:00:47]} Bd7 {[%clk 01:32:01]} {[%emt
00:00:13]} 11. Bxd7+ {[%clk 01:29:01]} {[%emt 00:00:36]} Nxd7 {[%clk 01:32:01]}
{[%emt 00:00:29]} 12. Ne2 {[%clk 01:28:42]} {[%emt 00:00:49]} Nf8 {[%clk
01:20:47]} {[%emt 00:11:45]} 13. Qa4+ {[%clk 01:24:44]} {[%emt 00:04:28]} Qd7
{[%clk 01:20:44]} {[%emt 00:00:32]} 14. Qxd7+ {[%clk 01:25:12]} {[%emt
00:00:02]} Kxd7 {[%clk 01:20:52]} {[%emt 00:00:22]} 15. h4 {[%clk 01:25:16]}
{[%emt 00:00:26]} b5 {[%clk 01:19:26]} {[%emt 00:01:56]} 16. b3 {[%clk
01:22:06]} {[%emt 00:03:41]} a5 {[%clk 01:09:59]} {[%emt 00:09:56]} 17. a4
{[%clk 01:19:19]} {[%emt 00:03:17]} b4 {[%clk 01:08:05]} {[%emt 00:02:25]} 18.
Bb2 {[%clk 01:19:14]} {[%emt 00:00:35]} Re8 {[%clk 00:55:07]} {[%emt 00:13:28]}
19. Kd2 {[%clk 01:09:57]} {[%emt 00:09:47]} Ke7 {[%clk 00:49:38]} {[%emt
00:06:00]} 20. g4 {[%clk 01:03:07]} {[%emt 00:07:19]} Kf7 {[%clk 00:47:07]}
{[%emt 00:03:00]} 21. Rac1 {[%clk 00:58:23]} {[%emt 00:05:14]} Re7 {[%clk
00:36:24]} {[%emt 00:11:14]} 22. h5 {[%clk 00:55:17]} {[%emt 00:03:36]} Nd7
{[%clk 00:34:28]} {[%emt 00:02:27]} 23. h6 {[%clk 00:52:04]} {[%emt 00:03:43]}
Bf8 {[%clk 00:32:54]} {[%emt 00:02:04]} 24. g5 {[%clk 00:45:47]} {[%emt
00:06:46]} Re8 {[%clk 00:28:23]} {[%emt 00:05:02]} 25. Bxf6 {[%clk 00:42:32]}
{[%emt 00:03:45]} Nxf6 {[%clk 00:28:16]} {[%emt 00:00:38]} 26. gxf6 {[%clk
00:42:56]} {[%emt 00:00:05]} Re5 {[%clk 00:28:03]} {[%emt 00:00:43]} 27. Nf4
{[%clk 00:37:56]} {[%emt 00:05:29]} g5 {[%clk 00:25:56]} {[%emt 00:02:38]} 28.
Nd3 {[%clk 00:37:59]} {[%emt 00:00:25]} Rxd5 {[%clk 00:26:18]} {[%emt
00:00:10]} 29. Rc4 {[%clk 00:35:27]} {[%emt 00:03:02]} Rf5 {[%clk 00:25:48]}
{[%emt 00:00:59]} 30. f4 {[%clk 00:31:30]} {[%emt 00:04:27]} gxf4 {[%clk
00:24:31]} {[%emt 00:01:48]} 31. Rxf4 {[%clk 00:31:29]} {[%emt 00:00:31]} Kxf6
{[%clk 00:22:49]} {[%emt 00:02:13]} 32. Rh5 {[%clk 00:30:55]} {[%emt 00:01:02]}
Rxf4 {[%clk 00:23:14]} {[%emt 00:00:05]} 33. Nxf4 {[%clk 00:31:21]} {[%emt
00:00:04]} Rg8 {[%clk 00:23:20]} {[%emt 00:00:24]} 34. Kd3 {[%clk 00:30:59]}
{[%emt 00:00:52]} Rg1 {[%clk 00:22:43]} {[%emt 00:01:08]} 35. Kd2 {[%clk
00:30:13]} {[%emt 00:01:15]} Be7 {[%clk 00:20:47]} {[%emt 00:02:26]} 36. Rh2
{[%clk 00:26:21]} {[%emt 00:04:23]} Kf5 {[%clk 00:19:43]} {[%emt 00:01:33]} 37.
Rf2 {[%clk 00:22:18]} {[%emt 00:04:33]} Ke4 {[%clk 00:20:02]} {[%emt 00:00:12]}
38. Ne2 {[%clk 00:22:22]} {[%emt 00:00:25]} Rg6 {[%clk 00:18:06]} {[%emt
00:02:26]} 39. Rf4+ {[%clk 00:21:55]} {[%emt 00:00:58]} Kd5 {[%clk 00:18:04]}
{[%emt 00:00:32]} 40. Rf7 {[%clk 00:21:50]} {[%emt 00:00:35]} Bg5 {[%clk
00:18:14]} {[%emt 00:00:18]} 41. Rxh7 {[%clk 00:21:45]} {[%emt 00:00:36]} Rxh6
{[%clk 00:18:32]} {[%emt 00:00:12]} 42. Rxh6 {[%clk 00:21:51]} {[%emt
00:00:25]} Bxh6 {[%clk 00:19:00]} 43. Kd3 {[%clk 00:22:11]} {[%emt 00:00:11]}
Ke5 {[%clk 00:18:07]} {[%emt 00:01:23]} 44. Ng1 {[%clk 00:21:17]} {[%emt
00:01:23]} d5 {[%clk 00:18:10]} {[%emt 00:00:26]} 45. Nf3+ {[%clk 00:21:40]}
{[%emt 00:00:07]} Kf5 {[%clk 00:18:19]} {[%emt 00:00:21]} 46. Nh2 {[%clk
00:21:20]} {[%emt 00:00:51]} Bg7 {[%clk 00:18:29]} {[%emt 00:00:20]} 47. Nf3
{[%clk 00:20:45]} {[%emt 00:01:04]} Kg4 {[%clk 00:18:13]} {[%emt 00:00:45]} 48.
Ne1 {[%clk 00:20:59]} {[%emt 00:00:18]} Bc3 {[%clk 00:15:25]} {[%emt 00:03:18]}
49. Ng2 {[%clk 00:20:23]} {[%emt 00:01:06]} Be5 {[%clk 00:14:50]} {[%emt
00:01:05]} 50. e4 {[%clk 00:17:48]} {[%emt 00:03:04]} d4 {[%clk 00:13:49]}
{[%emt 00:01:31]} 51. Ne1 {[%clk 00:17:50]} {[%emt 00:00:29]} Kf4 {[%clk
00:12:34]} {[%emt 00:01:43]} 52. Ng2+ {[%clk 00:17:29]} {[%emt 00:00:52]} Kg3
{[%clk 00:11:05]} {[%emt 00:01:58]} 53. Ne1 {[%clk 00:17:52]} {[%emt 00:00:08]}
Kf2 {[%clk 00:10:59]} {[%emt 00:00:36]} 54. Nc2 {[%clk 00:18:06]} {[%emt
00:00:16]} Bg3 {[%clk 00:10:35]} {[%emt 00:00:55]} 55. Na1 {[%clk 00:16:09]}
{[%emt 00:02:26]} Kf3 {[%clk 00:10:52]} {[%emt 00:00:13]} 56. Nc2 {[%clk
00:16:18]} {[%emt 00:00:21]} Kf4 {[%clk 00:11:08]} {[%emt 00:00:15]} 57. Na1
{[%clk 00:16:28]} {[%emt 00:00:20]} Be1 {[%clk 00:11:25]} {[%emt 00:00:13]} 58.
Nc2 {[%clk 00:16:21]} {[%emt 00:00:37]} Bc3 {[%clk 00:11:50]} {[%emt 00:00:06]}
59. Kc4 {[%clk 00:16:02]} {[%emt 00:00:48]} Kxe4 {[%clk 00:12:13]} {[%emt
00:00:06]} 60. Kxc5 {[%clk 00:15:37]} {[%emt 00:00:55]} d3 {[%clk 00:12:39]}
{[%emt 00:00:05]} 61. Nxb4 {[%clk 00:15:40]} {[%emt 00:00:27]} Bxb4+ {[%clk
00:13:04]} {[%emt 00:00:05]} 62. Kc4 {[%clk 00:15:04]} {[%emt 00:01:06]} d2
{[%clk 00:13:30]} {[%emt 00:00:04]} 63. Kb5 {[%clk 00:15:27]} {[%emt 00:00:07]}
d1=Q {[%clk 00:13:54]} {[%emt 00:00:06]} 64. Kc4 {[%clk 00:15:43]} {[%emt
00:00:13]} Qd3# {[%clk 00:14:21]} {[%emt 00:00:03]} 0-1

[Event "NJSK 2023 Jeugd C"]
[Site "Almelo, Netherlands"]
[Date "2023.05.02"]
[Round "4.13"]
[White "Thijssen, Freek"]
[Black "Roorda, Cas"]
[Result "1/2-1/2"]
[TimeControl "90min/40moves + 30min + 30sec/move"]
[WhiteElo "1644"]
[BlackElo "1769"]

1. e4 {[%clk 01:30:57]} {[%emt 00:00:02]} e6 {[%clk 01:30:51]} {[%emt
00:00:05]} 2. d4 {[%clk 01:31:22]} {[%emt 00:00:10]} d5 {[%clk 01:31:16]}
{[%emt 00:00:05]} 3. exd5 {[%clk 01:31:29]} {[%emt 00:00:23]} exd5 {[%clk
01:31:41]} {[%emt 00:00:05]} 4. Nf3 {[%clk 01:31:54]} {[%emt 00:00:06]} Nf6
{[%clk 01:32:05]} {[%emt 00:00:04]} 5. Bd3 {[%clk 01:32:13]} {[%emt 00:00:12]}
c5 {[%clk 01:32:31]} {[%emt 00:00:04]} 6. dxc5 {[%clk 01:31:32]} {[%emt
00:01:11]} Bxc5 {[%clk 01:32:47]} {[%emt 00:00:14]} 7. O-O {[%clk 01:30:19]}
{[%emt 00:01:42]} O-O {[%clk 01:32:58]} {[%emt 00:00:19]} 8. h3 {[%clk
01:29:02]} {[%emt 00:01:47]} h6 {[%clk 01:31:43]} {[%emt 00:01:45]} 9. Nbd2
{[%clk 01:27:45]} {[%emt 00:01:47]} a6 {[%clk 01:29:16]} {[%emt 00:02:58]} 10.
Nb3 {[%clk 01:27:30]} {[%emt 00:00:45]} Ba7 {[%clk 01:27:20]} {[%emt 00:02:27]}
11. Re1 {[%clk 01:24:09]} {[%emt 00:03:50]} Nc6 {[%clk 01:27:25]} {[%emt
00:00:25]} 12. c3 {[%clk 01:23:42]} {[%emt 00:00:58]} b5 {[%clk 01:11:36]}
{[%emt 00:16:19]} 13. a3 {[%clk 01:11:05]} {[%emt 00:13:06]} Bb7 {[%clk
01:10:04]} {[%emt 00:02:02]} 14. Be3 {[%clk 01:09:19]} {[%emt 00:02:16]} Bxe3
{[%clk 01:06:22]} {[%emt 00:04:12]} 15. Rxe3 {[%clk 01:09:30]} {[%emt
00:00:19]} Qd6 {[%clk 01:03:17]} {[%emt 00:03:36]} 16. Qd2 {[%clk 01:02:36]}
{[%emt 00:07:23]} Rfe8 {[%clk 00:45:39]} {[%emt 00:18:07]} 17. Rae1 {[%clk
01:01:23]} {[%emt 00:01:44]} Rxe3 {[%clk 00:41:53]} {[%emt 00:04:15]} 18. Rxe3
{[%clk 00:59:31]} {[%emt 00:02:23]} Nh5 {[%clk 00:36:25]} {[%emt 00:05:58]} 19.
Nfd4 {[%clk 00:49:17]} {[%emt 00:10:43]} g6 {[%clk 00:32:33]} {[%emt 00:04:23]}
20. Nxc6 {[%clk 00:47:35]} {[%emt 00:02:12]} Bxc6 {[%clk 00:32:47]} {[%emt
00:00:16]} 21. Nd4 {[%clk 00:47:44]} {[%emt 00:00:21]} Bd7 {[%clk 00:28:10]}
{[%emt 00:05:06]} 1/2-1/2